[Event "Masterklassen 2025"]
[Site "Uppsala, Sweden"]
[Date "2025.07.04"]
[Round "7.5"]
[White "Granath, Jonas"]
[Black "Nygren, David"]
[Result "1/2-1/2"]
[TimeControl "90 min for 40 move + 30 min with an increment of 30 sec starting move 1"]
[WhiteFideId "1761013"]
[BlackFideId "1704761"]
[WhiteElo "2008"]
[BlackElo "2094"]

1. e4 {[%clk 01:30:55]} {[%emt 00:00:04]} e6 {[%clk 01:30:54]} {[%emt
00:00:06]} 2. d4 {[%clk 01:31:19]} {[%emt 00:00:06]} d5 {[%clk 01:31:18]}
{[%emt 00:00:06]} 3. e5 {[%clk 01:31:36]} {[%emt 00:00:13]} c5 {[%clk
01:31:21]} {[%emt 00:00:26]} 4. c3 {[%clk 01:32:00]} {[%emt 00:00:07]} Nc6
{[%clk 01:30:47]} {[%emt 00:01:04]} 5. Nf3 {[%clk 01:32:21]} {[%emt 00:00:09]}
Nge7 {[%clk 01:30:27]} {[%emt 00:00:50]} 6. Na3 {[%clk 01:31:54]} {[%emt
00:00:57]} cxd4 {[%clk 01:28:23]} {[%emt 00:02:34]} 7. cxd4 {[%clk 01:31:45]}
{[%emt 00:00:39]} Nf5 {[%clk 01:27:34]} {[%emt 00:01:19]} 8. Nc2 {[%clk
01:31:21]} {[%emt 00:00:53]} Be7 {[%clk 01:25:35]} {[%emt 00:02:29]} 9. Be2
{[%clk 01:22:54]} {[%emt 00:08:57]} Bd7 {[%clk 01:19:14]} {[%emt 00:06:52]} 10.
O-O {[%clk 01:21:30]} {[%emt 00:01:54]} g5 {[%clk 01:13:13]} {[%emt 00:06:31]}
11. h3 {[%clk 01:12:11]} {[%emt 00:09:48]} h5 {[%clk 01:04:15]} {[%emt
00:09:28]} 12. Ne3 {[%clk 01:05:02]} {[%emt 00:07:40]} g4 {[%clk 00:56:36]}
{[%emt 00:08:09]} 13. hxg4 {[%clk 01:04:24]} {[%emt 00:01:08]} Nxe3 {[%clk
00:55:20]} {[%emt 00:01:45]} 14. Bxe3 {[%clk 01:04:10]} {[%emt 00:00:45]} hxg4
{[%clk 00:54:53]} {[%emt 00:00:57]} 15. Nh2 {[%clk 01:03:03]} {[%emt 00:01:37]}
f5 {[%clk 00:44:36]} {[%emt 00:10:47]} 16. exf6 {[%clk 00:57:39]} {[%emt
00:05:54]} Qc7 {[%clk 00:41:30]} {[%emt 00:03:35]} 17. Nxg4 {[%clk 00:56:10]}
{[%emt 00:02:00]} Bd6 {[%clk 00:39:40]} {[%emt 00:02:19]} 18. f4 {[%clk
00:46:27]} {[%emt 00:10:13]} O-O-O {[%clk 00:37:35]} {[%emt 00:02:36]} 19. Ne5
{[%clk 00:42:49]} {[%emt 00:04:07]} Be8 {[%clk 00:32:44]} {[%emt 00:05:22]} 20.
Bg4 {[%clk 00:28:45]} {[%emt 00:14:34]} Bxe5 {[%clk 00:27:18]} {[%emt
00:05:57]} 21. fxe5 {[%clk 00:19:37]} {[%emt 00:09:37]} Qh7 {[%clk 00:26:13]}
{[%emt 00:01:34]} 22. Bh3 {[%clk 00:15:30]} {[%emt 00:04:38]} Kb8 {[%clk
00:22:18]} {[%emt 00:04:25]} 23. Qg4 {[%clk 00:12:23]} {[%emt 00:03:37]} Bf7
{[%clk 00:21:42]} {[%emt 00:01:05]} 24. Kh2 {[%clk 00:05:51]} {[%emt 00:07:03]}
Rdg8 {[%clk 00:21:30]} {[%emt 00:00:42]} 25. Qe2 {[%clk 00:05:21]} {[%emt
00:00:59]} Bh5 {[%clk 00:19:36]} {[%emt 00:02:24]} 26. Qf2 {[%clk 00:05:01]}
{[%emt 00:00:51]} Nd8 {[%clk 00:19:41]} {[%emt 00:00:26]} 27. Rac1 {[%clk
00:03:50]} {[%emt 00:01:40]} Nf7 {[%clk 00:19:00]} {[%emt 00:01:11]} 28. Qc2
{[%clk 00:04:04]} {[%emt 00:00:16]} Bg6 {[%clk 00:18:38]} {[%emt 00:00:52]} 29.
Qc7+ {[%clk 00:04:09]} {[%emt 00:00:25]} Ka8 {[%clk 00:19:06]} {[%emt
00:00:03]} 30. Rf3 {[%clk 00:04:11]} {[%emt 00:00:27]} Be4 {[%clk 00:13:02]}
{[%emt 00:06:34]} 31. Rg3 {[%clk 00:04:31]} {[%emt 00:00:10]} Bxg2 {[%clk
00:12:40]} {[%emt 00:00:51]} 32. Rxg8+ {[%clk 00:02:58]} {[%emt 00:02:04]} Qxg8
{[%clk 00:12:53]} {[%emt 00:00:16]} 33. Qc8+ {[%clk 00:03:03]} {[%emt
00:00:26]} Qxc8 {[%clk 00:13:15]} {[%emt 00:00:08]} 34. Rxc8+ {[%clk 00:03:27]}
{[%emt 00:00:06]} Rxc8 {[%clk 00:13:30]} {[%emt 00:00:15]} 35. Kxg2 {[%clk
00:03:48]} {[%emt 00:00:09]} Rc6 {[%clk 00:11:33]} {[%emt 00:02:27]} 36. Bg4
{[%clk 00:03:06]} {[%emt 00:01:11]} Kb8 {[%clk 00:10:59]} {[%emt 00:01:05]} 37.
Bh5 {[%clk 00:03:26]} {[%emt 00:00:10]} Rc7 {[%clk 00:11:16]} {[%emt 00:00:13]}
38. Bxf7 {[%clk 00:01:05]} {[%emt 00:02:51]} Rxf7 {[%clk 00:11:37]} {[%emt
00:00:09]} 39. Kf3 {[%clk 00:01:16]} {[%emt 00:00:20]} Kc8 {[%clk 00:06:29]}
{[%emt 00:05:37]} 40. Kg4 {[%clk 00:01:25]} {[%emt 00:00:21]} Kd7 {[%clk
00:04:49]} {[%emt 00:02:11]} 41. Kg5 {[%clk 00:01:20]} {[%emt 00:00:33]} Ke8
{[%clk 00:04:29]} {[%emt 00:00:50]} 42. Kg6 {[%clk 00:00:48]} {[%emt 00:01:02]}
Kf8 {[%clk 00:04:08]} {[%emt 00:00:52]} 43. Bh6+ {[%clk 00:29:38]} {[%emt
00:01:40]} Kg8 {[%clk 00:33:16]} {[%emt 00:01:22]} 44. Bg7 {[%clk 00:28:36]}
{[%emt 00:01:32]} Rc7 {[%clk 00:31:52]} {[%emt 00:01:54]} 45. Bh6 {[%clk
00:28:24]} {[%emt 00:00:42]} Rd7 {[%clk 00:31:29]} {[%emt 00:00:53]} 46. Bd2
{[%clk 00:22:56]} {[%emt 00:05:58]} a6 {[%clk 00:29:41]} {[%emt 00:02:18]} 47.
Bb4 {[%clk 00:19:05]} {[%emt 00:04:21]} Rh7 {[%clk 00:27:57]} {[%emt 00:02:12]}
1/2-1/2

[Event "Masterklassen 2025"]
[Site "Uppsala, Sweden"]
[Date "2025.07.04"]
[Round "7.6"]
[White "Hagevi, Vidar"]
[Black "Eklund, Joel"]
[Result "1/2-1/2"]
[TimeControl "90 min for 40 move + 30 min with an increment of 30 sec starting move 1"]
[WhiteFideId "1767526"]
[BlackFideId "1705288"]
[WhiteElo "2139"]
[BlackElo "2194"]

1. d4 {[%clk 01:30:52]} {[%emt 00:00:06]} Nf6 {[%clk 01:30:36]} {[%emt
00:00:19]} 2. c4 {[%clk 01:31:06]} {[%emt 00:00:22]} g6 {[%clk 01:30:32]}
{[%emt 00:00:35]} 3. Nc3 {[%clk 01:29:25]} {[%emt 00:02:11]} Bg7 {[%clk
01:30:44]} {[%emt 00:00:16]} 4. e4 {[%clk 01:29:05]} {[%emt 00:00:51]} d6
{[%clk 01:30:51]} {[%emt 00:00:24]} 5. Be2 {[%clk 01:29:06]} {[%emt 00:00:28]}
O-O {[%clk 01:30:34]} {[%emt 00:00:48]} 6. Be3 {[%clk 01:29:24]} {[%emt
00:00:11]} c6 {[%clk 01:25:36]} {[%emt 00:05:28]} 7. g4 {[%clk 01:24:32]}
{[%emt 00:05:22]} a6 {[%clk 01:24:59]} {[%emt 00:01:09]} 8. g5 {[%clk
01:19:41]} {[%emt 00:05:19]} Nfd7 {[%clk 01:25:05]} {[%emt 00:00:24]} 9. h4
{[%clk 01:17:20]} {[%emt 00:02:50]} b5 {[%clk 01:24:31]} {[%emt 00:01:05]} 10.
Nf3 {[%clk 01:14:13]} {[%emt 00:03:36]} e5 {[%clk 01:19:01]} {[%emt 00:06:02]}
11. d5 {[%clk 01:10:29]} {[%emt 00:04:13]} b4 {[%clk 01:06:37]} {[%emt
00:12:55]} 12. Na4 {[%clk 01:10:05]} {[%emt 00:00:53]} c5 {[%clk 00:55:03]}
{[%emt 00:12:06]} 13. h5 {[%clk 00:59:45]} {[%emt 00:10:48]} Re8 {[%clk
00:52:25]} {[%emt 00:03:09]} 14. Nh2 {[%clk 00:50:27]} {[%emt 00:09:47]} Nf8
{[%clk 00:52:37]} {[%emt 00:00:18]} 15. Bg4 {[%clk 00:49:56]} {[%emt 00:00:59]}
Nbd7 {[%clk 00:53:00]} {[%emt 00:00:09]} 16. Kd2 {[%clk 00:42:45]} {[%emt
00:07:40]} a5 {[%clk 00:52:54]} {[%emt 00:00:38]} 17. Qg1 {[%clk 00:39:01]}
{[%emt 00:04:13]} Rb8 {[%clk 00:46:36]} {[%emt 00:06:50]} 18. hxg6 {[%clk
00:33:23]} {[%emt 00:06:07]} fxg6 {[%clk 00:46:21]} {[%emt 00:00:44]} 19. Qg3
{[%clk 00:32:05]} {[%emt 00:01:47]} Re7 {[%clk 00:46:01]} {[%emt 00:00:52]} 20.
Qh4 {[%clk 00:30:26]} {[%emt 00:02:09]} Qe8 {[%clk 00:44:31]} {[%emt 00:02:00]}
21. Rag1 {[%clk 00:27:56]} {[%emt 00:02:59]} Rf7 {[%clk 00:42:38]} {[%emt
00:02:23]} 22. Bd1 {[%clk 00:22:32]} {[%emt 00:05:51]} Ba6 {[%clk 00:40:44]}
{[%emt 00:02:27]} 23. Be2 {[%clk 00:20:01]} {[%emt 00:03:01]} Rb7 {[%clk
00:35:43]} {[%emt 00:05:31]} 24. Ng4 {[%clk 00:18:34]} {[%emt 00:01:57]} Rf4
{[%clk 00:28:54]} {[%emt 00:07:20]} 25. f3 {[%clk 00:17:07]} {[%emt 00:01:57]}
Nb8 {[%clk 00:27:18]} {[%emt 00:02:06]} 26. b3 {[%clk 00:17:01]} {[%emt
00:00:36]} Rbf7 {[%clk 00:27:44]} {[%emt 00:00:04]} 27. Nb2 {[%clk 00:15:57]}
{[%emt 00:01:34]} Nbd7 {[%clk 00:26:44]} {[%emt 00:01:30]} 28. Nd3 {[%clk
00:15:21]} {[%emt 00:01:04]} a4 {[%clk 00:25:23]} {[%emt 00:01:52]} 29. Qh2
{[%clk 00:11:26]} {[%emt 00:04:23]} Qa8 {[%clk 00:17:47]} {[%emt 00:08:09]} 30.
Nb2 {[%clk 00:10:20]} {[%emt 00:01:36]} Bc8 {[%clk 00:06:41]} {[%emt 00:11:36]}
31. Ra1 {[%clk 00:08:37]} {[%emt 00:02:12]} Nb6 {[%clk 00:06:49]} {[%emt
00:00:23]} 32. Nf2 {[%clk 00:07:38]} {[%emt 00:01:28]} Ra7 {[%clk 00:06:20]}
{[%emt 00:01:00]} 33. Qg1 {[%clk 00:05:08]} {[%emt 00:02:58]} Rff7 {[%clk
00:06:49]} {[%emt 00:00:03]} 34. Qd1 {[%clk 00:04:17]} {[%emt 00:01:19]} Ra5
{[%clk 00:06:47]} {[%emt 00:00:34]} 35. Rb1 {[%clk 00:03:50]} {[%emt 00:00:55]}
Rfa7 {[%clk 00:03:26]} {[%emt 00:03:52]} 36. Bf1 {[%clk 00:02:07]} {[%emt
00:02:11]} axb3 {[%clk 00:03:06]} {[%emt 00:00:52]} 37. axb3 {[%clk 00:02:28]}
{[%emt 00:00:09]} Ra2 {[%clk 00:03:33]} {[%emt 00:00:04]} 38. Nfd3 {[%clk
00:02:00]} {[%emt 00:00:56]} Ra1 {[%clk 00:02:57]} {[%emt 00:01:08]} 39. Bh3
{[%clk 00:01:07]} {[%emt 00:01:22]} Rxb1 {[%clk 00:03:18]} {[%emt 00:00:10]} 40.
Qxb1 {[%clk 00:01:25]} {[%emt 00:00:11]} Bxh3 {[%clk 00:02:04]} {[%emt
00:01:44]} 41. Rxh3 {[%clk 00:29:08]} {[%emt 00:02:46]} Ra1 {[%clk 00:30:11]}
{[%emt 00:02:23]} 42. Qc2 {[%clk 00:29:26]} {[%emt 00:00:13]} Qa3 {[%clk
00:28:24]} {[%emt 00:02:18]} 43. Nc1 {[%clk 00:24:25]} {[%emt 00:05:29]} Nfd7
{[%clk 00:27:16]} {[%emt 00:01:39]} 44. Rg3 {[%clk 00:24:18]} {[%emt 00:00:36]}
Nb8 {[%clk 00:25:35]} {[%emt 00:02:12]} 45. Rg1 {[%clk 00:23:15]} {[%emt
00:01:30]} Na6 {[%clk 00:23:44]} {[%emt 00:02:26]} 46. Ncd3 {[%clk 00:21:56]}
{[%emt 00:01:46]} Nc7 {[%clk 00:20:03]} {[%emt 00:04:13]} 47. Rxa1 {[%clk
00:20:33]} {[%emt 00:01:53]} Qxa1 {[%clk 00:20:28]} {[%emt 00:00:05]} 48. Nd1
{[%clk 00:20:09]} {[%emt 00:00:52]} Bf8 {[%clk 00:18:53]} {[%emt 00:02:06]} 49.
Nc1 {[%clk 00:17:50]} {[%emt 00:02:47]} Ne8 {[%clk 00:17:39]} {[%emt 00:01:46]}
50. Qa2 {[%clk 00:17:39]} {[%emt 00:00:40]} Qxa2+ {[%clk 00:17:29]} {[%emt
00:00:41]} 51. Nxa2 {[%clk 00:17:58]} {[%emt 00:00:12]} Nd7 {[%clk 00:17:44]}
{[%emt 00:00:15]} 52. Nf2 {[%clk 00:17:48]} {[%emt 00:00:38]} h6 {[%clk
00:13:42]} {[%emt 00:04:34]} 53. gxh6 {[%clk 00:13:49]} {[%emt 00:04:29]} Kh7
{[%clk 00:14:06]} {[%emt 00:00:05]} 54. Ng4 {[%clk 00:13:29]} {[%emt 00:00:49]}
Nef6 {[%clk 00:12:58]} {[%emt 00:01:40]} 55. Ke2 {[%clk 00:12:37]} {[%emt
00:01:20]} Nxg4 {[%clk 00:13:13]} {[%emt 00:00:16]} 56. fxg4 {[%clk 00:13:00]}
{[%emt 00:00:06]} Bxh6 {[%clk 00:13:40]} {[%emt 00:00:03]} 57. g5 {[%clk
00:12:51]} {[%emt 00:00:39]} Bf8 {[%clk 00:14:03]} {[%emt 00:00:08]} 58. Nc1
{[%clk 00:12:55]} {[%emt 00:00:26]} Be7 {[%clk 00:14:17]} {[%emt 00:00:17]} 59.
Nd3 {[%clk 00:12:51]} {[%emt 00:00:32]} Kg7 {[%clk 00:14:36]} {[%emt 00:00:12]}
60. Kf3 {[%clk 00:13:09]} {[%emt 00:00:11]} Kf7 {[%clk 00:13:58]} {[%emt
00:01:09]} 61. Kg4 {[%clk 00:12:55]} {[%emt 00:00:42]} Bd8 {[%clk 00:13:56]}
{[%emt 00:00:34]} 62. Bg1 {[%clk 00:12:02]} {[%emt 00:01:19]} Be7 {[%clk
00:14:15]} {[%emt 00:00:15]} 63. Bh2 {[%clk 00:11:56]} {[%emt 00:00:35]} Bd8
{[%clk 00:14:38]} {[%emt 00:00:09]} 64. Ne1 {[%clk 00:12:13]} {[%emt 00:00:11]}
Be7 {[%clk 00:14:51]} {[%emt 00:00:18]} 65. Nf3 {[%clk 00:12:33]} {[%emt
00:00:10]} Bd8 {[%clk 00:14:56]} {[%emt 00:00:25]} 66. Bg3 {[%clk 00:12:16]}
{[%emt 00:00:46]} Be7 {[%clk 00:14:58]} {[%emt 00:00:29]} 67. Nh4 {[%clk
00:09:05]} {[%emt 00:03:41]} Bd8 {[%clk 00:14:48]} {[%emt 00:00:40]} 68. Be1
{[%clk 00:07:26]} {[%emt 00:02:08]} Be7 {[%clk 00:15:07]} {[%emt 00:00:13]} 69.
Nf3 {[%clk 00:07:50]} {[%emt 00:00:05]} Bd8 {[%clk 00:15:32]} {[%emt 00:00:06]}
70. Bd2 {[%clk 00:08:02]} {[%emt 00:00:17]} Be7 {[%clk 00:15:58]} {[%emt
00:00:04]} 71. Ne1 {[%clk 00:08:26]} {[%emt 00:00:05]} Bd8 {[%clk 00:16:25]}
{[%emt 00:00:04]} 72. Nc2 {[%clk 00:08:49]} {[%emt 00:00:07]} Ke7 {[%clk
00:15:03]} {[%emt 00:01:52]} 73. Kf3 {[%clk 00:08:36]} {[%emt 00:00:42]} Ke8
{[%clk 00:15:08]} {[%emt 00:00:26]} 74. Kg4 {[%clk 00:05:05]} {[%emt 00:04:01]}
1/2-1/2

[Event "Masterklassen 2025"]
[Site "Uppsala, Sweden"]
[Date "2025.07.04"]
[Round "7.7"]
[White "Karde, Douglas"]
[Black "Johnson, Daniel"]
[Result "1/2-1/2"]
[TimeControl "90 min for 40 move + 30 min with an increment of 30 sec starting move 1"]
[WhiteFideId "1761498"]
[BlackFideId "1721283"]
[WhiteElo "2064"]
[BlackElo "2175"]

1. e4 {[%clk 01:30:55]} {[%emt 00:00:04]} e5 {[%clk 01:23:31]} {[%emt
00:07:30]} 2. f4 {[%clk 01:31:19]} {[%emt 00:00:06]} exf4 {[%clk 01:18:28]}
{[%emt 00:05:33]} 3. Nf3 {[%clk 01:31:42]} {[%emt 00:00:07]} Nf6 {[%clk
01:18:26]} {[%emt 00:00:31]} 4. e5 {[%clk 01:31:08]} {[%emt 00:01:06]} Nh5
{[%clk 01:18:31]} {[%emt 00:00:24]} 5. d4 {[%clk 01:30:13]} {[%emt 00:01:25]}
d6 {[%clk 01:17:45]} {[%emt 00:01:16]} 6. exd6 {[%clk 01:26:06]} {[%emt
00:04:38]} Bxd6 {[%clk 01:15:51]} {[%emt 00:02:27]} 7. Be2 {[%clk 01:25:45]}
{[%emt 00:00:47]} O-O {[%clk 01:04:27]} {[%emt 00:11:54]} 8. O-O {[%clk
01:25:54]} {[%emt 00:00:21]} c5 {[%clk 01:03:45]} {[%emt 00:01:12]} 9. c3
{[%clk 01:20:12]} {[%emt 00:06:12]} Nc6 {[%clk 01:01:12]} {[%emt 00:03:03]} 10.
Ne5 {[%clk 01:07:11]} {[%emt 00:13:31]} Nf6 {[%clk 00:54:01]} {[%emt 00:07:40]}
11. Nxc6 {[%clk 00:58:19]} {[%emt 00:09:21]} bxc6 {[%clk 00:53:35]} {[%emt
00:00:58]} 12. Bxf4 {[%clk 00:57:47]} {[%emt 00:01:02]} Bxf4 {[%clk 00:42:01]}
{[%emt 00:12:03]} 13. Rxf4 {[%clk 00:58:08]} {[%emt 00:00:10]} Qb6 {[%clk
00:42:16]} {[%emt 00:00:14]} 14. Nd2 {[%clk 00:30:06]} {[%emt 00:28:33]} Nd5
{[%clk 00:36:50]} {[%emt 00:05:55]} 15. Nc4 {[%clk 00:29:15]} {[%emt 00:01:22]}
Qb8 {[%clk 00:35:18]} {[%emt 00:02:01]} 16. Rh4 {[%clk 00:28:10]} {[%emt
00:01:36]} cxd4 {[%clk 00:29:35]} {[%emt 00:06:12]} 17. Qxd4 {[%clk 00:27:37]}
{[%emt 00:01:03]} Be6 {[%clk 00:26:16]} {[%emt 00:03:49]} 18. Rf1 {[%clk
00:23:23]} {[%emt 00:04:45]} Ne7 {[%clk 00:21:46]} {[%emt 00:04:59]} 19. Qc5
{[%clk 00:17:08]} {[%emt 00:06:46]} Ng6 {[%clk 00:20:32]} {[%emt 00:01:44]} 20.
Rd4 {[%clk 00:17:25]} {[%emt 00:00:13]} Qb5 {[%clk 00:15:15]} {[%emt 00:05:46]}
21. Qxb5 {[%clk 00:16:21]} {[%emt 00:01:35]} cxb5 {[%clk 00:15:38]} {[%emt
00:00:06]} 22. Nd6 {[%clk 00:16:41]} {[%emt 00:00:09]} a6 {[%clk 00:12:51]}
{[%emt 00:03:19]} 23. c4 {[%clk 00:16:55]} {[%emt 00:00:16]} bxc4 {[%clk
00:13:11]} {[%emt 00:00:10]} 24. Bxc4 {[%clk 00:17:19]} {[%emt 00:00:06]} Bxc4
{[%clk 00:12:07]} {[%emt 00:01:34]} 25. Nxc4 {[%clk 00:17:47]} {[%emt
00:00:01]} Rae8 {[%clk 00:07:06]} {[%emt 00:05:31]} 26. Rd6 {[%clk 00:16:37]}
{[%emt 00:01:40]} Re6 {[%clk 00:05:39]} {[%emt 00:01:57]} 27. Rfd1 {[%clk
00:17:02]} {[%emt 00:00:06]} Rfe8 {[%clk 00:05:51]} {[%emt 00:00:19]} 28. a4
{[%clk 00:16:50]} {[%emt 00:00:41]} Kf8 {[%clk 00:05:40]} {[%emt 00:00:40]} 29.
b4 {[%clk 00:12:15]} {[%emt 00:05:05]} Re4 {[%clk 00:05:41]} {[%emt 00:00:30]}
30. R6d4 {[%clk 00:12:38]} {[%emt 00:00:07]} Nf4 {[%clk 00:04:52]} {[%emt
00:01:19]} 31. Kf1 {[%clk 00:10:12]} {[%emt 00:02:56]} Ne2 {[%clk 00:01:01]}
{[%emt 00:04:20]} 32. Rxe4 {[%clk 00:10:35]} {[%emt 00:00:08]} Rxe4 {[%clk
00:01:29]} {[%emt 00:00:02]} 33. Rd8+ {[%clk 00:10:57]} {[%emt 00:00:07]} Ke7
{[%clk 00:01:55]} {[%emt 00:00:05]} 34. Re8+ {[%clk 00:11:24]} {[%emt
00:00:03]} Kxe8 {[%clk 00:02:16]} {[%emt 00:00:09]} 35. Nd6+ {[%clk 00:11:54]}
Kd7 {[%clk 00:00:33]} {[%emt 00:02:13]} 36. Nxe4 {[%clk 00:12:19]} {[%emt
00:00:05]} Nf4 {[%clk 00:00:42]} {[%emt 00:00:21]} 37. Nc5+ {[%clk 00:12:10]}
{[%emt 00:00:39]} Kc6 {[%clk 00:01:05]} {[%emt 00:00:07]} 38. Nxa6 {[%clk
00:12:35]} {[%emt 00:00:06]} Nd5 {[%clk 00:00:33]} {[%emt 00:01:01]} 39. b5+
{[%clk 00:10:27]} {[%emt 00:02:39]} Kb6 {[%clk 00:00:51]} {[%emt 00:00:11]} 40.
Nb8 {[%clk 00:10:18]} {[%emt 00:00:38]} Kc7 {[%clk 00:00:34]} {[%emt 00:00:47]}
41. Na6+ {[%clk 00:08:55]} {[%emt 00:01:54]} Kb6 {[%clk 00:00:51]} {[%emt
00:00:13]} 42. Nb8 {[%clk 00:09:21]} {[%emt 00:00:04]} Kc7 {[%clk 00:01:17]}
{[%emt 00:00:04]} 43. Na6+ {[%clk 00:09:48]} {[%emt 00:00:03]} 1/2-1/2

[Event "Masterklassen 2025"]
[Site "Uppsala, Sweden"]
[Date "2025.07.04"]
[Round "7.8"]
[White "Dingertz, Erik"]
[Black "Willstedt, Lukas"]
[Result "1/2-1/2"]
[TimeControl "90 min for 40 move + 30 min with an increment of 30 sec starting move 1"]
[WhiteFideId "1741578"]
[BlackFideId "1751913"]
[WhiteElo "2121"]
[BlackElo "2055"]

1. Nf3 {[%clk 01:30:55]} {[%emt 00:00:04]} d5 {[%clk 01:30:41]} {[%emt
00:00:19]} 2. g3 {[%clk 01:31:02]} {[%emt 00:00:23]} Nd7 {[%clk 01:31:03]}
{[%emt 00:00:08]} 3. d4 {[%clk 01:31:22]} {[%emt 00:00:10]} Nb6 {[%clk
01:31:27]} {[%emt 00:00:06]} 4. Bg2 {[%clk 01:31:40]} {[%emt 00:00:13]} Bf5
{[%clk 01:31:50]} {[%emt 00:00:06]} 5. O-O {[%clk 01:31:45]} {[%emt 00:00:25]}
e6 {[%clk 01:32:14]} {[%emt 00:00:06]} 6. b3 {[%clk 01:30:51]} {[%emt
00:01:25]} Be7 {[%clk 01:31:13]} {[%emt 00:01:30]} 7. c4 {[%clk 01:29:46]}
{[%emt 00:01:35]} c6 {[%clk 01:31:02]} {[%emt 00:00:42]} 8. Nbd2 {[%clk
01:29:16]} {[%emt 00:00:59]} h6 {[%clk 01:31:01]} {[%emt 00:00:31]} 9. Bb2
{[%clk 01:28:13]} {[%emt 00:01:34]} Nf6 {[%clk 01:31:05]} {[%emt 00:00:26]} 10.
Ne5 {[%clk 01:26:59]} {[%emt 00:01:44]} O-O {[%clk 01:28:51]} {[%emt 00:02:44]}
11. Rc1 {[%clk 01:24:53]} {[%emt 00:02:35]} a5 {[%clk 01:20:01]} {[%emt
00:09:20]} 12. a3 {[%clk 01:19:39]} Nbd7 {[%clk 01:13:02]} {[%emt 00:13:14]} 13.
Nd3 {[%clk 01:13:15]} Rc8 {[%clk 01:10:16]} {[%emt 00:10:09]} 14. c5 {[%clk
01:02:13]} b5 {[%clk 01:05:19]} {[%emt 00:17:00]} 15. Re1 {[%clk 00:59:40]} Qc7
{[%clk 00:58:59]} {[%emt 00:09:52]} 16. Nf3 {[%clk 00:52:59]} Be4 {[%clk
00:54:19]} {[%emt 00:12:21]} 17. Rc2 {[%clk 00:50:47]} Rfd8 {[%clk 00:52:47]}
{[%emt 00:04:44]} 18. Bc1 {[%clk 00:49:27]} Nf8 {[%clk 00:52:37]} {[%emt
00:02:30]} 19. Bf4 {[%clk 00:48:27]} Qb7 {[%clk 00:52:41]} {[%emt 00:01:56]} 20.
h4 {[%clk 00:40:34]} Ng6 {[%clk 00:50:57]} {[%emt 00:10:37]} 21. Bd2 {[%clk
00:39:22]} Ra8 {[%clk 00:48:43]} {[%emt 00:04:26]} 22. Bh3 {[%clk 00:38:42]} a4
{[%clk 00:43:31]} {[%emt 00:06:52]} 23. b4 {[%emt 00:00:39]} Bf8 {[%clk
00:43:54]} 24. Rc1 {[%clk 00:38:24]} {[%emt 00:00:46]} Nd7 {[%clk 00:42:02]}
{[%emt 00:02:22]} 25. h5 {[%clk 00:37:11]} {[%emt 00:01:44]} Ne7 {[%clk
00:42:22]} {[%emt 00:00:08]} 26. Nh4 {[%clk 00:36:23]} {[%emt 00:01:18]} Nf6
{[%clk 00:37:59]} {[%emt 00:04:54]} 27. Nf4 {[%clk 00:36:33]} {[%emt 00:00:21]}
Nf5 {[%clk 00:32:51]} {[%emt 00:05:38]} 28. f3 {[%emt 00:16:23]} Nxd4 {[%clk
00:26:19]} {[%emt 00:00:45]} 29. fxe4 {[%clk 00:26:08]} {[%emt 00:01:19]} Nxe4
{[%clk 00:26:20]} {[%emt 00:00:28]} 30. Bc3 {[%clk 00:14:28]} {[%emt 00:12:11]}
Nb3 {[%clk 00:25:00]} {[%emt 00:01:50]} 31. Qd3 {[%clk 00:14:51]} {[%emt
00:00:07]} Nxc1 {[%clk 00:24:04]} {[%emt 00:01:25]} 32. Rxc1 {[%clk 00:15:17]}
{[%emt 00:00:04]} Qe7 {[%clk 00:21:32]} {[%emt 00:03:02]} 33. Rf1 {[%clk
00:12:20]} {[%emt 00:03:26]} Ng5 {[%clk 00:16:14]} {[%emt 00:05:49]} 34. Bg4
{[%clk 00:06:30]} {[%emt 00:06:20]} e5 {[%clk 00:15:15]} {[%emt 00:01:30]} 35.
Nfg6 {[%emt 00:04:46]} fxg6 {[%clk 00:12:36]} {[%emt 00:01:11]} 36. Nxg6 {[%clk
00:04:38]} {[%emt 00:00:03]} Qb7 {[%clk 00:12:53]} {[%emt 00:00:12]} 37. Bxe5
{[%clk 00:04:52]} {[%emt 00:00:17]} Re8 {[%clk 00:10:43]} {[%emt 00:02:40]} 38.
Qf5 {[%clk 00:04:37]} {[%emt 00:00:46]} Qf7 {[%clk 00:09:53]} {[%emt 00:01:19]}
39. Qd7 {[%clk 00:04:35]} {[%emt 00:00:33]} Qxd7 {[%clk 00:09:05]} {[%emt
00:01:18]} 40. Bxd7 {[%clk 00:05:02]} {[%emt 00:00:03]} Re6 {[%clk 00:05:37]}
{[%emt 00:03:58]} 41. Bxc6 {[%clk 00:22:29]} {[%emt 00:13:03]} Rxc6 {[%clk
00:34:07]} {[%emt 00:01:59]} 42. Rxf8+ {[%clk 00:22:53]} {[%emt 00:00:06]} Rxf8
{[%clk 00:34:31]} {[%emt 00:00:07]} 43. Ne7+ {[%clk 00:23:21]} {[%emt
00:00:02]} Kf7 {[%clk 00:30:01]} {[%emt 00:05:00]} 44. Nxc6 {[%clk 00:23:44]}
{[%emt 00:00:07]} Re8 {[%clk 00:30:10]} {[%emt 00:00:19]} 45. Kf1 {[%clk
00:23:51]} {[%emt 00:00:23]} Ne4 {[%clk 00:28:11]} {[%emt 00:02:30]} 46. Bf4
{[%clk 00:23:46]} Nc3 {[%clk 00:27:05]} {[%emt 00:02:10]} 47. Nd4 {[%clk
00:23:15]} Re4 {[%clk 00:21:36]} {[%emt 00:07:01]} 48. e3 {[%emt 00:00:40]} Ke8
{[%clk 00:20:13]} {[%emt 00:01:37]} 49. Ke1 {[%clk 00:22:44]} Kd7 {[%clk
00:20:11]} {[%emt 00:01:39]} 50. Nc2 {[%clk 00:22:25]} Kc6 {[%clk 00:15:43]}
{[%emt 00:05:47]} 51. Kd2 {[%emt 00:00:45]} Nb1+ 52. Kc1 {[%clk 00:22:42]}
{[%emt 00:00:17]} Nxa3 53. Nxa3 Rxb4 {[%clk 00:16:24]} {[%emt 00:00:06]} 54.
Be5 {[%clk 00:21:34]} {[%emt 00:02:04]} Rg4 {[%clk 00:13:17]} {[%emt 00:03:37]}
55. Bd6 {[%clk 00:21:18]} {[%emt 00:00:47]} d4 {[%clk 00:13:40]} {[%emt
00:00:07]} 56. Kd2 {[%clk 00:15:58]} {[%emt 00:05:49]} dxe3+ {[%clk 00:11:35]}
{[%emt 00:02:35]} 57. Kxe3 {[%clk 00:16:25]} {[%emt 00:00:04]} b4 {[%emt
00:02:30]} 58. Nc2 {[%clk 00:15:46]} {[%emt 00:01:07]} b3 {[%clk 00:09:55]}
{[%emt 00:00:12]} 59. Na3 {[%emt 00:00:57]} Rg5 {[%emt 00:09:10]} 60. Nc4
{[%clk 00:07:52]} {[%emt 00:00:08]} Rxh5 {[%clk 00:08:45]} {[%emt 00:00:48]} 61.
Ke4 {[%clk 00:08:14]} {[%emt 00:00:08]} Rxc5 {[%clk 00:05:56]} {[%emt
00:03:20]} 62. Bxc5 {[%clk 00:08:42]} {[%emt 00:00:02]} Kxc5 {[%clk 00:06:25]}
{[%emt 00:00:01]} 63. Kd3 {[%clk 00:08:48]} {[%emt 00:00:24]} Kb4 {[%emt
00:00:10]} 64. Ne5 {[%clk 00:09:12]} {[%emt 00:00:04]} a3 {[%clk 00:06:53]} 65.
Nc6+ {[%clk 00:09:19]} {[%emt 00:00:46]} Kc5 {[%clk 00:06:26]} 66. Nd4 {[%emt
00:01:08]} b2 67. Nb3+ {[%emt 00:00:05]} Kb4 68. Kc2 {[%emt 00:00:01]} 1/2-1/2